Cogmind - Beta 17.1 @@@ ROGUE MODE // 2026.08.31 @ 19:29:35 Player: eph7ra Result: Destroyed by S-43 Plague with Heavy Machine Gun Performance ------------- Evolutions (8) 4000 Regions Visited (16) 3200 Robots Destroyed (68) 340 Value Destroyed (2343) 2343 Prototype IDs (5) 100 Alien Tech Used (0) 0 Bonus (500) 500 TOTAL SCORE: 10483 Bonus ------- Scanned by Researcher 500 Cogmind --------- Core Integrity 0/1450 Matter 285/300 Energy 98/100 System Corruption 9% Temperature Hot (272) Movement Core (50) Location -2/Research Parts ------- > --- POWER (3) -------- (None) > --- PROPULSION (5) --- (None) > --- UTILITY (13) ----- Advanced Signal Interpreter Hacking Suite > --- WEAPON (2) ------- (None) > --- INVENTORY (5) ---- Light Quantum Reactor Fusion Bomb Launcher Remote Datajack Sigix Corpse Peak State ------------ > --- POWER ------------ Antimatter Reactor Antimatter Reactor > --- PROPULSION ------- Armored Treads Biometal Heavy Treads > --- UTILITY ---------- Experimental Cooling System Experimental Cooling System Large Storage Unit Advanced Matter Compressor Advanced Matter Compressor Improved Signal Interpreter Core Analyzer Improved Propulsion Shielding Damper Plating > --- WEAPON ----------- Compact HERF Cannon Hardcell Cannon > --- INVENTORY -------- Antimatter Reactor Heavy Treads Xenon Bombardment Thruster Improved Cesium-ion Thruster Improved Surge Thruster Impulse Thruster Improved Propulsion Shielding Damper Plating Grenade Launcher Remote Datajack Improved Plasma Cutter [Rating: 124] Favorites ----------- Power Antimatter Reactor Engine Light Deuterium Engine Power Core Light Nuclear Core Reactor Antimatter Reactor Propulsion Light Treads Treads Light Treads Leg Aluminum Leg Hover Unit Improved Linear Gravjet Flight Unit Improved Cesium-ion Thruster Utility Improved Signal Interpreter Device Experimental Cooling System Storage Large Storage Unit Processor Improved Signal Interpreter Hackware Authchip [Power] Protection Damper Plating Weapon Hardcell Cannon Energy Gun Small Laser Energy Cannon Compact HERF Cannon Ballistic Gun Enhanced Autogun Ballistic Cannon Hardcell Cannon Launcher Grenade Launcher Special Weapon Improved Plasma Cutter Slashing Weapon Scythe Build | -11 -10 -9 -8 -7 -6 -5 -4 -4 -4 -4 -4 -4 -3 -3 -3 -2 ------- Run | Yrd Mat Mat Mat Fac Fac Fac Fac Was Fac Upp Upp Zhi Pro Res Qua Res Slots Evolved 16 | . . 2 2 2 2 2 2 . . . . . . 2 . 2 Power 2 | . . . . 1 . . . . . . . . . . . 1 Propulsion 3 | . . 1 . . . . . . . . . . . 1 . 1 Utility 11 | . . 1 2 1 2 2 2 . . . . . . 1 . . Weapon . | . . . . . . . . . . . . . . . . . Parts Attached 92 | 6 2 12 8 9 4 12 . 8 7 3 1 . 10 5 2 3 Power 17 | 1 . 1 2 4 1 1 . 2 . . 1 . 3 . 1 . Engine 7 | 1 . 1 2 1 . . . . . . 1 . 1 . . . Core 5 | . . . . 3 1 1 . . . . . . . . . . Reactor 5 | . . . . . . . . 2 . . . . 2 . 1 . Propulsion 25 | 2 1 5 1 1 . 3 . 2 . 1 . . 6 2 . 1 Treads 14 | . . 5 1 1 . . . 2 . 1 . . 4 . . . Leg 3 | 2 1 . . . . . . . . . . . . . . . Wheel . | . . . . . . . . . . . . . . . . . Hover 1 | . . . . . . . . . . . . . . . . 1 Flight 7 | . . . . . . 3 . . . . . . 2 2 . . Utility 36 | 1 . 4 4 2 3 6 . 3 5 2 . . 1 2 1 2 Device 13 | . . 1 2 . 2 3 . 1 2 . . . . . 1 1 Storage 5 | 1 . 2 . . . . . . 2 . . . . . . . Processor 6 | . . . 1 . 1 2 . . 1 . . . . . . 1 Hackware 3 | . . . . . . 1 . . . 1 . . . 1 . . Protection 9 | . . 1 1 2 . . . 2 . 1 . . 1 1 . . Artifact . | . . . . . . . . . . . . . . . . . Weapon 14 | 2 1 2 1 2 . 2 . 1 2 . . . . 1 . . Energy Gun 3 | 1 1 . . . . . . . 1 . . . . . . . Energy Cannon 1 | . . . . . . . . 1 . . . . . . . . Ballistic Gun 5 | 1 . 2 . 2 . . . . . . . . . . . . Ballistic Cannon 1 | . . . . . . . . . 1 . . . . . . . Launcher 1 | . . . 1 . . . . . . . . . . . . . Special Weapon 2 | . . . . . . 1 . . . . . . . 1 . . Impact Weapon . | . . . . . . . . . . . . . . . . . Slashing Weapon 1 | . . . . . . 1 . . . . . . . . . . Piercing Weapon . | . . . . . . . . . . . . . . . . . Special Melee Weapon . | . . . . . . . . . . . . . . . . . Unidentified Prototypes 5 | . . 1 . . . 1 . . 2 . . . . . 1 . Parts Lost 53 | . . . 1 1 14 4 . . 1 2 . . 22 . 4 4 Power 11 | . . . 1 1 3 1 . . . . . . 5 . . . Propulsion 16 | . . . . . 3 1 . . . 1 . . 8 . 1 2 Utility 21 | . . . . . 6 2 . . 1 1 . . 7 . 2 2 Weapon 5 | . . . . . 2 . . . . . . . 2 . 1 . Highest Loss Streak 13 | . . . 1 1 13 4 . . 1 2 . . 8 . 2 2 To Critical Strikes . | . . . . . . . . . . . . . . . . . Average Backups 10 | 4 7 7 13 14 14 9 8 8 11 11 13 14 10 2 3 3 Power 1 | . 1 1 2 1 1 . . . 1 1 2 3 1 . . . Propulsion 4 | 3 5 3 3 2 3 2 3 4 5 5 7 8 5 . 1 . Utility 1 | . . . 4 5 4 2 2 . 2 1 1 1 . . . . Weapon 1 | . 1 2 3 5 4 2 1 1 1 1 1 . . . 1 1 Tool/Special . | . . . . . . . . . . . . . . . . . Unused Backups 22 | . 1 4 1 5 1 2 1 3 . . 1 . . . . 3 Power 4 | . . 1 1 . . . . 1 . . . . . . . 1 Propulsion 7 | . 1 2 . 1 . . 1 1 . . . . . . . 1 Utility 3 | . . . . 2 . . . 1 . . . . . . . . Weapon 8 | . . 1 . 2 1 2 . . . . 1 . . . . 1 Tool/Special . | . . . . . . . . . . . . . . . . . Average Slot Usage (%) 73 | . 85 95 99 99 86 44 42 66 76 76 78 78 55 19 22 10 Engine 4 | . 14 11 8 6 5 . . . . . 2 5 2 . . . Core 1 | . . . . 7 4 1 . . . . . . . . . . Reactor 3 | . . . . . . . . 8 10 10 7 5 4 . . . Treads 12 | . . 27 27 23 18 . . 7 10 9 10 10 9 . . . Leg 1 | . 28 3 . . . . . . . . . . . . . . Flight 1 | . . . . . . 8 10 2 . . . . . 7 5 2 Device 8 | . . 8 13 7 9 11 5 8 10 10 10 10 5 . 2 3 Storage 10 | . 14 11 9 7 6 5 5 9 12 15 15 15 12 . . . Processor 7 | . . . 8 7 11 13 15 15 12 10 10 10 5 . . . Hackware 2 | . . . . . . 1 5 2 . 3 5 5 5 6 7 4 Protection 7 | . . 10 12 22 14 . . 6 9 5 5 5 2 2 1 . Energy Gun 1 | . 14 11 3 . . . . . . 1 . . . . . . Ballistic Gun 5 | . 14 10 14 12 12 . . . . . . . . . . . Ballistic Cannon 1 | . . . . . . . . . 4 5 5 5 2 . . . Launcher 1 | . . . . 1 . . . . . 3 5 5 2 . . . Peak Build Rating 124 | 6 6 19 31 40 47 53 33 100 124 118 112 110 110 40 47 30 Average Rating 60 | 3 6 17 29 38 42 31 33 80 114 109 110 110 74 29 35 22 On Entrance 47 | . 6 6 19 29 40 13 33 33 100 118 111 110 110 5 40 29 Avg Prop Armor Cover (%) 16 | . . . . . . 20 20 14 . . . . 20 9 4 . Naked Turns . | . . . . . . . . . . . . . . . . . Heaviest Build 124 | 13 13 32 42 61 64 23 6 114 124 120 118 106 106 5 5 1 Greatest Support 98 | 20 20 60 62 62 62 16 6 95 95 90 90 90 98 16 16 16 Greatest Overweight (x) 7 | 4 . . . . 6 7 . 1 1 5 1 1 1 . . . Average Overweight (x) . | 1 . . . . . . . . 1 1 1 1 . . . . Largest Inventory Capacity 15 | 8 8 15 15 15 15 15 8 15 15 15 15 15 15 5 5 5 Average Capacity 13 | 7 8 10 15 15 15 10 8 14 15 15 15 15 14 5 5 5 Most Carried 15 | 6 8 9 15 15 15 14 8 15 15 15 15 15 15 4 4 5 Average Carried 11 | 4 7 7 13 14 14 8 8 9 15 12 14 15 10 2 3 4 Final Capacity 15 | 8 8 15 15 15 15 8 8 15 15 15 15 15 5 5 5 5 Final Carried 15 | 6 8 9 14 15 14 8 8 15 15 13 15 15 3 3 4 4 Class Distribution -------------------- 66% | Mutant 23% | Scavenger-Mutant 7% | Derelict-Mutant Dominant Class ---------------- Mutant | -10/Materials Mutant | -9/Materials Mutant | -8/Materials Mutant | -7/Factory Mutant | -6/Factory Mutant | -5/Factory Mutant | -4/Factory Scavenger-Mutant | -4/Waste Scavenger-Mutant | -4/Factory Scavenger-Mutant | -4/Upper Caves Mutant | -4/Upper Caves Mutant | -4/Zhirov Mutant | -3/Proximity Caves Mutant | -3/Research Mutant | -3/Quarantine Mutant | -2/Research Resources | -11 -10 -9 -8 -7 -6 -5 -4 -4 -4 -4 -4 -4 -3 -3 -3 -2 ----------- Run | Yrd Mat Mat Mat Fac Fac Fac Fac Was Fac Upp Upp Zhi Pro Res Qua Res Matter Collected 3028 | 251 101 215 576 114 175 18 . 386 134 656 262 . 90 . 50 . Remotely . | . . . . . . . . . . . . . . . . . Salvage Created 2467 | . 316 356 866 114 217 54 . . 252 292 . . . . . . Parts 109 | . 16 27 30 6 7 4 . . 10 9 . . . . . . Haulers Intercepted 1 | . . . . . . . . . 1 . . . . . . . Recyclers Shooed 1 | . . . . 1 . . . . . . . . . . . . Parts Field Recycled . | . . . . . . . . . . . . . . . . . Retrieved Matter . | . . . . . . . . . . . . . . . . . Parts Self-Destructed 5 | . . . . . . . . . . 5 . . . . . . Prevented 2 | . . . . . . . . . . 2 . . . . . . Parts Restored . | . . . . . . . . . . . . . . . . . Kills | -11 -10 -9 -8 -7 -6 -5 -4 -4 -4 -4 -4 -4 -3 -3 -3 -2 ------- Run | Yrd Mat Mat Mat Fac Fac Fac Fac Was Fac Upp Upp Zhi Pro Res Qua Res Combat Hostiles Destroyed 55 | . 8 9 17 2 5 4 . . 2 8 . . . . . . Guns 40 | . 8 9 15 2 5 . . . . 1 . . . . . . Cannons 5 | . . . . . . . . . 1 4 . . . . . . AOE 9 | . . . 2 . . 4 . . . 3 . . . . . . Classes Destroyed 11 | . 4 2 1 1 2 . . . 1 . . . . . . . Worker 2 | . 1 . 1 . . . . . . . . . . . . . Hauler 1 | . . . . . . . . . 1 . . . . . . . Recycler 3 | . . 1 2 . . . . . . . . . . . . . Watcher 7 | . 2 1 3 1 . . . . . . . . . . . . Swarmer 18 | . 3 4 3 . . 4 . . . 4 . . . . . . Grunt 25 | . 5 2 11 1 2 . . . 1 3 . . . . . . Brawler 2 | . . . . . 1 . . . . 1 . . . . . . Duelist 1 | . . . . . 1 . . . . . . . . . . . Sentry 5 | . . 3 2 . . . . . . . . . . . . . Hunter 1 | . . . 1 . . . . . . . . . . . . . Programmer 3 | . . . . 1 1 . . . 1 . . . . . . . Best Kill Streak 5 | . 5 4 4 1 2 4 . . 2 4 . . . . . . Combat Bots Only 5 | . 5 4 3 1 2 4 . . 1 4 . . . . . . Max Kills in Single Turn 3 | . 1 2 3 1 1 2 . . 1 2 . . . . . . Gunslinging 1 | . . 1 . . . . . . . . . . . . . . Exploded 2 | . . . 2 . . 2 . . . 2 . . . . . . Melee . | . . . . . . . . . . . . . . . . . Uniques/NPCs Destroyed . | . . . . . . . . . . . . . . . . . Combat | -11 -10 -9 -8 -7 -6 -5 -4 -4 -4 -4 -4 -4 -3 -3 -3 -2 -------- Run | Yrd Mat Mat Mat Fac Fac Fac Fac Was Fac Upp Upp Zhi Pro Res Qua Res Hostile Shots Fired 979 | . 41 51 93 13 132 73 2 . 34 88 . . 243 10 67 132 Missed 331 | . 12 10 29 4 35 29 2 . 10 30 . . 78 5 31 56 Hits 648 | . 29 41 64 9 97 44 . . 24 58 . . 165 5 36 76 Melee 11 | . . . . . 9 1 . . . 1 . . . . . . Projectile 637 | . 29 41 64 9 88 43 . . 24 57 . . 165 5 36 76 AOE 1 | . . . . . . . . . 1 . . . . . . . Critical Strikes 23 | . . 1 1 1 5 2 . . 1 4 . . 3 1 . 4 Damage Taken 12192 | . 283 392 984 166 1596 882 . . 567 1220 . . 3767 102 479 1754 Core 3294 | . 47 26 71 29 176 593 . . 23 38 . . 653 17 169 1452 Absorbed by Shields . | . . . . . . . . . . . . . . . . . Redirected to Shielding 290 | . . 21 74 . 11 . . . 99 . . . 85 . . . Ignored by Resistances 183 | . . . . . . . . . 183 . . . . . . . Core Remaining (%) 77 | 100 81 93 87 95 79 40 . . . . . . 37 . 85 . Volleys Fired 212 | . 26 26 71 5 33 4 . . 6 24 . . . 8 9 . Largest 2 | . 2 2 2 2 2 1 . . 2 2 . . . 1 1 . Hottest 149 | . 60 65 65 58 53 30 . . 149 115 . . . 20 20 . Shots Fired 381 | . 52 46 129 10 66 4 . . 12 45 . . . 8 9 . Gun 319 | . 52 46 128 9 66 . . . . 18 . . . . . . Cannon 36 | . . . . . . . . . 12 24 . . . . . . Launcher 8 | . . . 1 1 . 3 . . . 3 . . . . . . Special 18 | . . . . . . 1 . . . . . . . 8 9 . Kinetic 284 | . 26 26 127 9 66 . . . 6 24 . . . . . . Thermal 64 | . 26 20 1 . . . . . . . . . . 8 9 . Explosive 8 | . . . 1 1 . 3 . . . 3 . . . . . . Electromagnetic 24 | . . . . . . . . . 6 18 . . . . . . Robot Hit Streak 14 | . 10 14 9 3 13 6 . . 6 6 . . . . 5 . Robot Miss Streak 6 | . 3 4 5 6 5 1 . . 2 3 . . . . 1 . Penetration Max . | . . . . . . . . . . . . . . . . . Secondary Targets 4 | . . 3 . . 1 . . . . . . . . . . . Max Gunslinging Chain 1 | . . 1 . . 1 . . . . . . . . . . . Shots Hit Robots 240 | . 32 28 89 6 47 3 . . 8 23 . . . . 4 . Core Hits 166 | . 16 15 48 9 51 7 . . 4 14 . . . . 2 . Critical Kills 1 | . . . 1 . . . . . . . . . . . . . Critical Parts Destroyed . | . . . . . . . . . . . . . . . . . Critical Strikes 3 | . . . 1 . . . . . . 2 . . . . . . Destroy 1 | . . . 1 . . . . . . . . . . . . . Blast 2 | . . . . . . . . . . 2 . . . . . . Melee Attacks . | . . . . . . . . . . . . . . . . . Impact . | . . . . . . . . . . . . . . . . . Slashing . | . . . . . . . . . . . . . . . . . Piercing . | . . . . . . . . . . . . . . . . . Sneak Attacks . | . . . . . . . . . . . . . . . . . Combat Hostiles . | . . . . . . . . . . . . . . . . . Follow-up Attacks . | . . . . . . . . . . . . . . . . . Damage Inflicted 5164 | . 400 394 1700 144 986 228 . . 321 923 . . . . 46 22 Guns 3662 | . 392 387 1590 97 985 . . . . 211 . . . . . . Cannons 829 | . . . . . . . . . 321 508 . . . . . . Explosions 544 | . . . 78 37 . 225 . . . 204 . . . . . . Melee . | . . . . . . . . . . . . . . . . . Ramming 83 | . 8 7 32 10 1 3 . . . . . . . . . 22 Kinetic 3784 | . 237 234 1590 97 985 . . . 133 508 . . . . . . Thermal 354 | . 155 153 . . . . . . . . . . . . 46 . Explosive 544 | . . . 78 37 . 225 . . . 204 . . . . . . Electromagnetic 399 | . . . . . . . . . 188 211 . . . . . . Impact . | . . . . . . . . . . . . . . . . . Slashing . | . . . . . . . . . . . . . . . . . Piercing . | . . . . . . . . . . . . . . . . . Highest Corruption 9 | . . . . 1 9 . . . . . . . . . . 9 Average Corruption 2 | . . . . 1 7 . . . . . . . . . . 5 Corruption Purged . | . . . . . . . . . . . . . . . . . Corruption Blocked . | . . . . . . . . . . . . . . . . . Effects 9 | . . . . 4 2 . . . . . . . . . . 3 Message Errors 3 | . . . . . 2 . . . . . . . . . . 1 Matter Fused 1 | . . . . 1 . . . . . . . . . . . . Heat Flow Errors 2 | . . . . 1 . . . . . . . . . . . 1 Energy Discharges 2 | . . . . 2 . . . . . . . . . . . . Data Loss (minor) 1 | . . . . . . . . . . . . . . . . 1 Overload Shots . | . . . . . . . . . . . . . . . . . Overflow Damage 11 | . . . 10 . . . . . . 1 . . . . . . Projectiles 1 | . . . . . . . . . . 1 . . . . . . Explosions 10 | . . . 10 . . . . . . . . . . . . . Melee . | . . . . . . . . . . . . . . . . . Knockbacks 7 | . . . . 1 . . . . 2 3 . . . . . 1 Impact 2 | . . . . 1 . . . . . . . . . . . 1 Kinetic 4 | . . . . . . . . . 2 2 . . . . . . Secondary 1 | . . . . . . . . . . 1 . . . . . . Self-Inflicted Damage 147 | . . . . 38 . 16 . . . 82 . . . . . 11 Shots 5 | . . . . 1 . 1 . . . 3 . . . . . . Rammed 22 | . . 4 4 2 3 1 . . . . . . . . . 8 Targets Rammed 25 | . 2 5 4 2 3 1 . . . . . . . . . 8 Kicked 2 | . 2 . . . . . . . . . . . . . . . Crushed 1 | . . 1 . . . . . . . . . . . . . . Highest Temperature 299 | . 30 8 126 112 299 . . . 165 1 . . . . . . Average Temperature 60 | . 16 4 44 34 98 . . . 92 1 . . . . . . Received Heat Transfer 2498 | . 114 66 486 27 594 288 . . 111 333 . . 424 37 . 18 Effects 2 | . . . . . 2 . . . . . . . . . . . Interference 2 | . . . . . 2 . . . . . . . . . . . Siege Activations . | . . . . . . . . . . . . . . . . . Martial Activations . | . . . . . . . . . . . . . . . . . Shielding Activations . | . . . . . . . . . . . . . . . . . Robots Disrupted . | . . . . . . . . . . . . . . . . . Combat Hostiles . | . . . . . . . . . . . . . . . . . Robots Corrupted 1 | . . . . . . . . . 1 . . . . . . . Combat Hostiles 1 | . . . . . . . . . 1 . . . . . . . Parts Fried . | . . . . . . . . . . . . . . . . . Impact Corruptions . | . . . . . . . . . . . . . . . . . Robots Melted . | . . . . . . . . . . . . . . . . . Combat Hostiles . | . . . . . . . . . . . . . . . . . Parts Melted 1 | . 1 . . . . . . . . . . . . . . . Heat Transferred 848 | . 350 350 . . . . . . . . . . . . 148 . Parts Sabotaged . | . . . . . . . . . . . . . . . . . Parts Stolen . | . . . . . . . . . . . . . . . . . Parts Stripped . | . . . . . . . . . . . . . . . . . Power Chain Reactions . | . . . . . . . . . . . . . . . . . Alert | -11 -10 -9 -8 -7 -6 -5 -4 -4 -4 -4 -4 -4 -3 -3 -3 -2 ------- Run | Yrd Mat Mat Mat Fac Fac Fac Fac Was Fac Upp Upp Zhi Pro Res Qua Res Maximum Alert Level 1 | . . . . . . 1 . . . . . . . . . . Low Security (%) 98 | 100 100 100 100 100 100 78 100 100 100 . . . . 100 100 100 Level 1 1 | . . . . . . 21 . . . . . . . . . . Level 2 . | . . . . . . . . . . . . . . . . . Level 3 . | . . . . . . . . . . . . . . . . . Level 4 . | . . . . . . . . . . . . . . . . . Level 5 . | . . . . . . . . . . . . . . . . . High Security . | . . . . . . . . . . . . . . . . . Max Security . | . . . . . . . . . . . . . . . . . Peak Influence 350 | . 110 85 156 54 55 350 179 57 37 . . . . 65 88 53 Initial 154 | . . 31 6 39 . . 154 57 . . . . . 17 30 43 Average 36 | . 50 39 42 10 8 113 160 7 2 . . . . 21 32 27 Influence Increases 2588 | . 228 247 521 174 137 519 61 . 78 210 . . 105 75 158 75 Destroy 0b10 Robot/C 1100 | . 160 180 340 40 100 80 . . 40 160 . . . . . . Destroy 0b10 Robot/NC 65 | . 15 10 30 5 . . . . 5 . . . . . . . Destroy Leader 246 | . 44 42 86 12 20 10 . . 12 20 . . . . . . Successful Hack 150 | . 9 . 5 97 . . 16 . . . . . . . 23 . Disable Machine 60 | . . 15 15 15 . . . . . . . . . . 15 . Destroy Structure 52 | . . . 15 5 2 24 . . 6 . . . . . . . Partial Spotted 150 | . . . . . . 30 45 . 15 . . . . . . 60 Lose Combat Pursuer 765 | . . . 30 . 15 375 . . . 30 . . 105 75 120 15 Influence Decreases 2588 | . 152 307 448 263 137 202 213 165 41 247 . . 79 46 135 153 Entered New Map 460 | . . 45 10 50 . . 163 108 . 15 . . . 9 25 35 Time Decay 1803 | . 152 262 319 213 101 162 50 57 39 212 . . 39 37 80 80 Lost Part 206 | . . . . . 36 40 . . 2 20 . . 40 . 30 38 Purge Threat 119 | . . . 119 . . . . . . . . . . . . . Squads Dispatched 21 | . 3 . 3 1 2 3 3 . 2 . . . . . 4 . Investigation 7 | . 1 . . . . 1 3 . . . . . . . 2 . Extermination 6 | . . . . 1 1 2 . . 1 . . . . . 1 . Reinforcement 8 | . 2 . 3 . 1 . . . 1 . . . . . 1 . Assault . | . . . . . . . . . . . . . . . . . Garrison . | . . . . . . . . . . . . . . . . . Intercept . | . . . . . . . . . . . . . . . . . Searches Triggered . | . . . . . . . . . . . . . . . . . Construction Impeded . | . . . . . . . . . . . . . . . . . Haulers Reinforced . | . . . . . . . . . . . . . . . . . Active Scanning Responses . | . . . . . . . . . . . . . . . . . Cargo Convoy Interrupts . | . . . . . . . . . . . . . . . . . Stealth | -11 -10 -9 -8 -7 -6 -5 -4 -4 -4 -4 -4 -4 -3 -3 -3 -2 --------- Run | Yrd Mat Mat Mat Fac Fac Fac Fac Was Fac Upp Upp Zhi Pro Res Qua Res Distress Signals 7 | . 1 . 3 . . . . . 1 . . . . . 1 1 Communications Jammed . | . . . . . . . . . . . . . . . . . Distress Signals . | . . . . . . . . . . . . . . . . . Times Spotted 163 | . 12 13 24 3 12 25 2 . 9 9 . . 14 8 11 21 Peak Tracking Total 21 | . 5 4 4 1 3 14 1 . 6 5 . . 7 5 7 21 Tactical Retreats 20 | . . . 2 . 1 4 . . . 2 . . 4 2 4 1 Traps | -11 -10 -9 -8 -7 -6 -5 -4 -4 -4 -4 -4 -4 -3 -3 -3 -2 ------- Run | Yrd Mat Mat Mat Fac Fac Fac Fac Was Fac Upp Upp Zhi Pro Res Qua Res Traps Triggered 7 | . . . . 1 3 1 1 . . . . . . . 1 . Indirectly . | . . . . . . . . . . . . . . . . . Trap Hack Attempts . | . . . . . . . . . . . . . . . . . Triggered . | . . . . . . . . . . . . . . . . . Disarmed . | . . . . . . . . . . . . . . . . . Reprogrammed . | . . . . . . . . . . . . . . . . . Reused . | . . . . . . . . . . . . . . . . . Traps Extracted . | . . . . . . . . . . . . . . . . . Installed . | . . . . . . . . . . . . . . . . . Triggered . | . . . . . . . . . . . . . . . . . Machines | -11 -10 -9 -8 -7 -6 -5 -4 -4 -4 -4 -4 -4 -3 -3 -3 -2 ---------- Run | Yrd Mat Mat Mat Fac Fac Fac Fac Was Fac Upp Upp Zhi Pro Res Qua Res Machines Disabled 5 | . . 1 1 1 . . . . . 1 . . . . 1 . Max in Single Turn 1 | . . 1 1 1 . . . . . 1 . . . . 1 . Garrison Access 2 | . . . 1 1 . . . . . . . . . . . . Machines Repaired . | . . . . . . . . . . . . . . . . . Machines Dismantled 1 | . . . . . . . . . . . . . . . 1 . Machines Sabotaged . | . . . . . . . . . . . . . . . . . Overloaded Fab Kills . | . . . . . . . . . . . . . . . . . Hacking | -11 -10 -9 -8 -7 -6 -5 -4 -4 -4 -4 -4 -4 -3 -3 -3 -2 --------- Run | Yrd Mat Mat Mat Fac Fac Fac Fac Was Fac Upp Upp Zhi Pro Res Qua Res Machines Accessed 26 | . 2 1 5 6 1 1 4 . 1 . . . . . 5 . Terminals 23 | . 2 1 4 5 1 1 3 . 1 . . . . . 5 . Fabricators . | . . . . . . . . . . . . . . . . . Repair Stations . | . . . . . . . . . . . . . . . . . Recycling Units 1 | . . . . . . . 1 . . . . . . . . . Scanalyzers . | . . . . . . . . . . . . . . . . . Garrison Access 2 | . . . 1 1 . . . . . . . . . . . . Total Hacks 74 | . 6 3 12 19 2 3 13 . 3 . . . . . 13 . Successful 28 | . 1 . 4 13 . 1 4 . . . . . . . 5 . Failed 46 | . 5 3 8 6 2 2 9 . 3 . . . . . 8 . Catastrophic 13 | . 2 . 3 . 1 2 2 . . . . . . . 3 . Database Lockouts . | . . . . . . . . . . . . . . . . . Manual 32 | . 6 3 5 11 2 2 3 . . . . . . . . . Terminals 70 | . 6 3 10 18 2 3 12 . 3 . . . . . 13 . Fabricators . | . . . . . . . . . . . . . . . . . Repair Stations . | . . . . . . . . . . . . . . . . . Recycling Units 1 | . . . . . . . 1 . . . . . . . . . Scanalyzers . | . . . . . . . . . . . . . . . . . Garrison Access 3 | . . . 2 1 . . . . . . . . . . . . Terminal Hacks 19 | . 1 . 3 6 . 1 3 . . . . . . . 5 . Record 11 | . . . . 3 . 1 2 . . . . . . . 5 . Level Access Points 1 | . 1 . . . . . . . . . . . . . . . Emergency Access Points 1 | . . . . 1 . . . . . . . . . . . . Unreport Threat 1 | . . . 1 . . . . . . . . . . . . . Locate Traps 4 | . . . 2 1 . . 1 . . . . . . . . . Zone Layout 1 | . . . . 1 . . . . . . . . . . . . Fabricator Hacks . | . . . . . . . . . . . . . . . . . Repair Station Hacks . | . . . . . . . . . . . . . . . . . Recycling Unit Hacks 1 | . . . . . . . 1 . . . . . . . . . Retrieve Matter 1 | . . . . . . . 1 . . . . . . . . . Scanalyzer . | . . . . . . . . . . . . . . . . . Garrison Access Hacks 2 | . . . 1 1 . . . . . . . . . . . . Seal Access 2 | . . . 1 1 . . . . . . . . . . . . Unauthorized Hacks 6 | . . . . 6 . . . . . . . . . . . . Terminals 6 | . . . . 6 . . . . . . . . . . . . Botnet 4 | . . . . 4 . . . . . . . . . . . . Skim 2 | . . . . 2 . . . . . . . . . . . . Fabricators . | . . . . . . . . . . . . . . . . . Repair Stations . | . . . . . . . . . . . . . . . . . Recycling Units . | . . . . . . . . . . . . . . . . . Scanalyzers . | . . . . . . . . . . . . . . . . . Garrison Access . | . . . . . . . . . . . . . . . . . Data Cores Recovered . | . . . . . . . . . . . . . . . . . Used . | . . . . . . . . . . . . . . . . . Hacking Detections 22 | . 2 1 4 5 1 1 3 . 1 . . . . . 4 . Full Trace Events 8 | . 1 . 1 . . 1 3 . . . . . . . 2 . Feedback Events . | . . . . . . . . . . . . . . . . . Feedback Blocked . | . . . . . . . . . . . . . . . . . Robot Schematics Acquired . | . . . . . . . . . . . . . . . . . Robots Built . | . . . . . . . . . . . . . . . . . Authchips . | . . . . . . . . . . . . . . . . . Time . | . . . . . . . . . . . . . . . . . Total Robot Build Rating . | . . . . . . . . . . . . . . . . . Part Schematics Acquired . | . . . . . . . . . . . . . . . . . Parts Built . | . . . . . . . . . . . . . . . . . Authchips . | . . . . . . . . . . . . . . . . . Time . | . . . . . . . . . . . . . . . . . Total Part Build Rating . | . . . . . . . . . . . . . . . . . Part Studies Acquired . | . . . . . . . . . . . . . . . . . Parts Repaired . | . . . . . . . . . . . . . . . . . Time . | . . . . . . . . . . . . . . . . . Parts Recycled . | . . . . . . . . . . . . . . . . . Recycled Matter . | . . . . . . . . . . . . . . . . . Retrieved Matter . | . . . . . . . . . . . . . . . . . Retrieved Components . | . . . . . . . . . . . . . . . . . Parts Scanalyzed . | . . . . . . . . . . . . . . . . . Part Schematics Acquired . | . . . . . . . . . . . . . . . . . Parts Damaged . | . . . . . . . . . . . . . . . . . Bothacking | -11 -10 -9 -8 -7 -6 -5 -4 -4 -4 -4 -4 -4 -3 -3 -3 -2 ------------ Run | Yrd Mat Mat Mat Fac Fac Fac Fac Was Fac Upp Upp Zhi Pro Res Qua Res Used RIF Installer . | . . . . . . . . . . . . . . . . . Robots Hacked 1 | . . . . . . 1 . . . . . . . . . . Non-combat 1 | . . . . . . 1 . . . . . . . . . . Combat . | . . . . . . . . . . . . . . . . . Robot Hacks Applied 1 | . . . . . . 1 . . . . . . . . . . no_distress 1 | . . . . . . 1 . . . . . . . . . . Relay Couplers Released . | . . . . . . . . . . . . . . . . . Fabnet Peak Effective % . | . . . . . . . . . . . . . . . . . Robots Rewired . | . . . . . . . . . . . . . . . . . Allies Hacked . | . . . . . . . . . . . . . . . . . Hacks Repelled . | . . . . . . . . . . . . . . . . . Allies | -11 -10 -9 -8 -7 -6 -5 -4 -4 -4 -4 -4 -4 -3 -3 -3 -2 -------- Run | Yrd Mat Mat Mat Fac Fac Fac Fac Was Fac Upp Upp Zhi Pro Res Qua Res Total Allies . | . . . . . . . . . . . . . . . . . Largest Group . | . . . . . . . . . . . . . . . . . Highest-Rated Group . | . . . . . . . . . . . . . . . . . Highest-Rated Ally . | . . . . . . . . . . . . . . . . . Total Orders . | . . . . . . . . . . . . . . . . . Ally Attacks . | . . . . . . . . . . . . . . . . . Total Damage . | . . . . . . . . . . . . . . . . . Kills . | . . . . . . . . . . . . . . . . . Allies Corrupted . | . . . . . . . . . . . . . . . . . Allies Melted . | . . . . . . . . . . . . . . . . . Intel | -11 -10 -9 -8 -7 -6 -5 -4 -4 -4 -4 -4 -4 -3 -3 -3 -2 ------- Run | Yrd Mat Mat Mat Fac Fac Fac Fac Was Fac Upp Upp Zhi Pro Res Qua Res Active Infowar (turns) 2726 | . . . 1215 852 513 140 . . . . . . . . . 6 Sensors 2725 | . . . 1215 852 513 139 . . . . . . . . . 6 Jamming 18 | . . . . . . 18 . . . . . . . . . . Robot Analysis Total . | . . . . . . . . . . . . . . . . . Derelict Logs Recovered 3 | . . . . . . . . . . 1 2 . . . . . Drone Launches . | . . . . . . . . . . . . . . . . . Drone Recoveries . | . . . . . . . . . . . . . . . . . Exploration | -11 -10 -9 -8 -7 -6 -5 -4 -4 -4 -4 -4 -4 -3 -3 -3 -2 ------------- Run | Yrd Mat Mat Mat Fac Fac Fac Fac Was Fac Upp Upp Zhi Pro Res Qua Res Turns Passed 9867 | 71 462 633 1237 852 570 562 110 476 510 1102 674 25 2057 130 204 192 Spaces Moved 6616 | 43 312 326 577 483 219 1024 312 360 203 411 273 11 1146 202 332 382 Core 299 | 25 . . . . 2 39 . . . . . . 61 46 . 126 Treads 3676 | . . 276 577 483 217 . . 207 203 411 273 11 1018 . . . Legs 380 | 18 312 50 . . . . . . . . . . . . . . Wheels . | . . . . . . . . . . . . . . . . . Hover 14 | . . . . . . . . . . . . . . . . 14 Flight 2247 | . . . . . . 985 312 153 . . . . 67 156 332 242 Fastest Speed 29 | 50 120 120 155 155 152 29 35 35 237 245 245 245 32 40 45 40 Average Speed 132 | 132 120 153 156 155 200 48 35 126 237 249 245 245 177 45 45 46 Slowest Speed 570 | 250 120 160 160 155 350 400 35 237 237 570 245 245 250 50 45 50 Overloaded Moves . | . . . . . . . . . . . . . . . . . Propulsion Burnouts . | . . . . . . . . . . . . . . . . . Robots Hopped 21 | . . . . . . 8 . 4 . . . . 1 . 8 . Potential Cave-ins . | . . . . . . . . . . . . . . . . . Cave-ins Triggered . | . . . . . . . . . . . . . . . . . Exploration Rate (%) 32 | 3 57 24 52 13 6 22 7 88 8 53 63 7 87 7 40 14 Regions Visited 16 Branch Regions 5 Pre-discovered Areas 1 | . . . . . . . . . . . 1 . . . . . Known Exits Taken 9 | . 1 . 1 1 1 1 . . 1 1 1 1 . . . . Unknown Exits Taken 5 | 1 . 1 . . . . . . . . . . 1 1 1 . Scrap Searched 6 | . . . . . . . . . . 1 4 . 1 . . . Spaces Dug . | . . . . . . . . . . . . . . . . . Terrain Destroyed 50 | . . . 8 4 . 11 . . 3 24 . . . . . . Melee . | . . . . . . . . . . . . . . . . . Projectile 9 | . . . . . . . . . 3 6 . . . . . . AOE 41 | . . . 8 4 . 11 . . . 18 . . . . . . Terrain Rammed . | . . . . . . . . . . . . . . . . . Walls Destroyed . | . . . . . . . . . . . . . . . . . Machines Disabled . | . . . . . . . . . . . . . . . . . Actions | -11 -10 -9 -8 -7 -6 -5 -4 -4 -4 -4 -4 -4 -3 -3 -3 -2 --------- Run | Yrd Mat Mat Mat Fac Fac Fac Fac Was Fac Upp Upp Zhi Pro Res Qua Res Total 7370 | 54 348 420 807 579 297 1082 314 379 221 442 281 10 1168 221 351 396 Wait 286 | . 1 39 126 61 26 19 . . . . . . 10 4 . . Move 6560 | 42 311 325 576 482 218 1007 312 351 202 410 272 10 1143 201 316 382 Hop 20 | . . . . . . 8 . 4 . . . . 1 . 7 . Pick Up 67 | 6 3 4 11 10 5 5 1 9 . 4 4 . . 2 1 2 Fast Attach 41 | 6 . 4 3 2 2 3 . 6 6 1 1 . . 3 2 2 Attach 37 | . . 2 1 2 3 11 . 2 . 2 . . 11 2 . 1 Detach 3 | . . . . . . 3 . . . . . . . . . . Swap 24 | . 2 6 7 5 . 1 . 1 1 1 . . . . . . Drop 60 | . 3 9 8 10 3 5 1 6 6 . 4 . 3 . 1 1 Fire 212 | . 26 26 71 5 33 4 . . 6 24 . . . 8 9 . Melee . | . . . . . . . . . . . . . . . . . Ram 10 | . . . . . 1 1 . . . . . . . . . 8 Kick 2 | . 2 . . . . . . . . . . . . . . . Crush 13 | . . 5 4 2 2 . . . . . . . . . . . Escape Stasis 26 | . . . . . 4 15 . . . . . . . . 7 . Rewire . | . . . . . . . . . . . . . . . . . Trap . | . . . . . . . . . . . . . . . . . Miscellaneous 9 | . . . . . . . . . . . . . . 1 8 . Route ------- -11/Scrapyard -10/Materials (discovered 4 exits: *Mat x3 / [*Min]) -9/Materials (discovered 2 exits: *Mat / [*Sto]) -8/Materials -7/Factory -6/Factory -5/Factory (discovered 2 exits: *Fac x2) -4/Factory -4/Waste -4/Factory -4/Upper Caves -4/Upper Caves -4/Zhirov -3/Proximity Caves -3/Research -3/Quarantine -2/Research History --------- Turn | Location | Event 2 | -11/Scrapyard | Met Revision 17 33 | -11/Scrapyard | Discovered new exit (range 16) 72 | -11/Scrapyard | Entered Materials 302 | -10/Materials | Build established: Mutant 305 | -10/Materials | Identified exit to Materials 374 | -10/Materials | Discovered new exit (range 13) 534 | -10/Materials | Entered another Materials area 534 | -9/Materials | Evolved 2 slots: Propulsion x1, Utility x1 835 | -9/Materials | Discovered new exit (range 15) 883 | -9/Materials | Discovered new exit (range 9) 1167 | -9/Materials | Entered another Materials area 1167 | -8/Materials | Evolved 2 slots: Utility x2 2289 | -8/Materials | Discovered new exit (range 13) 2402 | -8/Materials | Identified exit to Factory 2404 | -8/Materials | Entered Factory 2404 | -7/Factory | Evolved 2 slots: Power x1, Utility x1 3242 | -7/Factory | Discovered new exit (range 4) 3255 | -7/Factory | Identified exit to Factory 3256 | -7/Factory | Entered another Factory area 3256 | -6/Factory | Evolved 2 slots: Utility x2 3802 | -6/Factory | Discovered new exit (range 9) 3822 | -6/Factory | Identified exit to Factory 3826 | -6/Factory | Entered another Factory area 3826 | -5/Factory | Evolved 2 slots: Utility x2 3851 | -5/Factory | Lost 13 parts (3p3n5u2w) 4224 | -5/Factory | Lost 4 parts (1p1n2u) 4249 | -5/Factory | Core integrity fell below 50% 4286 | -5/Factory | Discovered new exit (range 16) 4307 | -5/Factory | Identified exit to Factory 4337 | -5/Factory | Discovered exit to Factory (range 15) 4356 | -5/Factory | Spotted B-75 Beast 4388 | -5/Factory | Entered another Factory area 4388 | -4/Factory | Evolved 2 slots: Utility x2 4498 | -4/Factory | Sucked down chute 4498 | -4/Factory | Entered Waste 4498 | -4/Waste | The area was eerily silent 4543 | -4/Waste | Discovered new exit (range 16) 4728 | -4/Waste | Found Damper Plating 4863 | -4/Waste | Build established: Scavenger-Mutant 4931 | -4/Waste | Found Damper Plating 4965 | -4/Waste | Identified exit to Factory 4974 | -4/Waste | Entered Factory 5450 | -4/Factory | Discovered new exit (range 3) 5455 | -4/Factory | Identified exit to Upper Caves 5484 | -4/Factory | Entered Upper Caves 5665 | -4/Upper Caves | Entered a destroyed Warlord outpost 6219 | -4/Upper Caves | Learned Research terminal intel 6273 | -4/Upper Caves | Discovered new exit (range 14) 6381 | -4/Upper Caves | Identified exit to Upper Caves 6586 | -4/Upper Caves | Entered another Upper Caves area 6913 | -4/Upper Caves | Found DCF Scrap (13 items) 7203 | -4/Upper Caves | Build established: Mutant 7206 | -4/Upper Caves | Learned location of Armory (-4) 7241 | -4/Upper Caves | Discovered new exit (range 9) 7255 | -4/Upper Caves | Identified exit to Zhirov 7260 | -4/Upper Caves | Entered Zhirov 7260 | -4/Zhirov | Discovered new exit (range 3) 7268 | -4/Zhirov | Identified exit to Proximity Caves 7285 | -4/Zhirov | Entered Proximity Caves 7604 | -3/Proximity Caves | Spotted B-86 Titan 8272 | -3/Proximity Caves | Lost 5 parts (1p1n2u1w) 8374 | -3/Proximity Caves | Lost 4 parts (1p2n1u) 8546 | -3/Proximity Caves | Lost 8 parts (2p1n4u1w) 8769 | -3/Proximity Caves | Build established: Derelict-Mutant 9316 | -3/Proximity Caves | Core integrity fell below 50% 9336 | -3/Proximity Caves | Discovered new exit (range 14) 9340 | -3/Proximity Caves | Attracted the attention of an 0b10 checkpoint 9342 | -3/Proximity Caves | Entered Research 9342 | -3/Research | Evolved 2 slots: Propulsion x1, Utility x1 9343 | -3/Research | Loaded intel: 25 terminal locations 9349 | -3/Research | Lost 3 parts (3n) 9365 | -3/Research | Found Fusion Bomb Launcher 9461 | -3/Research | Discovered new exit (range 16) 9472 | -3/Research | Entered Quarantine 9572 | -3/Quarantine | Scanned by Researcher 9585 | -3/Quarantine | Found Sigix Corpse 9602 | -3/Quarantine | Build established: Mutant 9670 | -3/Quarantine | Discovered new exit (range 14) 9676 | -3/Quarantine | Entered Research 9676 | -2/Research | Evolved 2 slots: Power x1, Propulsion x1 9833 | -2/Research | Core integrity fell below 50% 9862 | -2/Research | Core integrity fell below 20% 9868 | -2/Research | Destroyed by S-43 Plague with Heavy Machine Gun Last Messages --------------- 09832_ Slug penetrates P-80 Master. 09834_ >&N,:E3LOO 6FBSIFK6%2ZDEG0T UL/EK V 09840_ TF Node disabled. 09840_ Adv. Sensor Array tumbles out of TF Node. 09840_ Adv. Signal Interpreter tumbles out of TF Node. 09843_ Acquired Adv. Sensor Array. 09845_ Acquired Adv. Signal Interpreter. 09849_ U-05 Engineer builds a Wall. 09849_ Penetrated by Slug. 09849_ Adv. Sensor Array destroyed. 09849_ Door malfunctions. 09849_ Knocked back. 09852_ System corrupted: Component data lost. 09856_ C-30 ARC bursts open, deploying its payload. 09856_ S-43 Plague unfolds itself. 09860_ W-44 Eye sends out distress signal. 09868_ System corrupted: Heat flow error (+254). 09868_ K-01 Serf destroyed. Map ----- +----------------------------------------------------+ | ?????????????????????????# ! + | | ?????????????????????????# """" # | | ????????????????????????????"""" # | | ????????????????????????????""""" ?# | | ????????????????????????????"""" ?########+###### | | ????????????????????????????#####???????? ?# | | ??????????????????????????????????????? # | | ?????????????????????????????????????# # | | ?????????????????????????????????????# """#] | | ?????????????????????????????????????# R"# | | ?????????????????????????????????????# """# | | ?????????????????????????????????????# # | | ?????????????????????????????????????# # | | ?????????????????????????????????????########### | | ???????????????????????????????????????????????# | | ???????????????????????????????????????????????# | | ???????????????????????????????????????????????# | | ???????????????????????????????????????????????# | | ???????????????????????????????????????????????# | | ???????????????????????????????????????????????# | | ????????????+#######+######+################???# | | ??????????? g A #???# | | ??????????? s #???### | | ?????????? g ! s #?????? | | ?????????? s =% s ####### | | ?????????? s =@ sss k | | ?????????????????###;################# | | ???????????????????????#############?# | | ???????????????????????# ?# #### | | ???????????????????????# # #### | | ???????????????????????# # / | | ???????????????????????# + H "#### | | ???????????????????????# # "%#??# | | ???????????????????????# ! # "#??#! | | ???????????????????????#############?# #??# | | ????????????????????????????????????# #?# | | ????????????????????????????????????# ###### | | ????????????????????????????????????# | | ????????????????????????????????????+ | | ????????????????????????????????????# | | ????????????????????????????????????# ###### | | ????????????????????????????????????# #????? | | ????????????????????????????????????### ###????? | | ??????????????????????????????????????# #??????? | | ??????????????????????????????????????# +??????? | | ??????????????????????????????????????? #??????? | | ??????????????????????????????????????? #??????? | | ??????????????????????????????????????? ????????? | | ?????????????????????????????????????????????????? | | ?????????????????????????????????????????????????? | +----------------------------------------------------+ Best States ------------- Heat Dissipation 119 Energy Generation 37 Energy Capacity 550 Matter Stores 1082 Matter Capacity 1100 Sight Range 16 Robot Scan Range 15 Terrain Scan Density 110 Jamming Range 12 Armor Coverage 1600 Resistance: EX 25 Resistance: EM 90 Propulsion Shielding 66 Utility Shielding 66 Evasion (%) 64 Core Analysis 6 Recoil Reduction 3 Offensive Hacking 10 Defensive Hacking 10 Authchip Count 1 Item Schematics ----------------- None Robot Schematics ------------------ None Fabricated ------------ Nothing Repaired ---------- Nothing Studied --------- None Alien Tech Used ----------------- None Achievements -------------- Party Time Quantum Hacking Slippery One Challenges ------------ None Game ------ Seed ModifiedSwarmMatter Manual? 0 Play Time 01:18:03 Cumulative 32.1 hours Start 2026.08.31 @ 18:14:11 End 2026.08.31 @ 19:29:35 Sessions 1 Manual Loads 0 Difficulty Rogue Special Mode None Game No. 48 Rogue 43 Adventurer 1 Explorer 4 Win Type - Total 0 Types 0/0/0/0/0/0/0/0/0/0 Lore% 11 Gallery% 24 Achievement% 20 Wizard Run 0 Options --------- Layout 1 ASCII 0 Keyboard 0 Movement Arrows Keybinds 0 Fullscreen 1 Font 24/Smallcaps Map View 50x35 Zoom Use 0% Tactical HUD 1 Map Filters NONE Filters NONE Steam 1 RUN: b034570d-cda3-40e7-86a0-42f2a6ae0996